bitfinex/quotes_BTCUSD_20251104
["timestamp","ask_amount","ask_price","bid_price","bid_amount"]
[1762275331801,3.66888475,102560.0,102550.0,0.03832965]
[1762275332073,3.66888475,102560.0,102550.0,0.03732965]
[1762275332307,3.63406475,102560.0,102550.0,0.03732965]
[1762275332577,3.62042475,102560.0,102550.0,0.04892965]
[1762275332831,3.28042475,102560.0,102550.0,0.08945965]
[1762275333078,3.08941695,102560.0,102550.0,0.08945965]
[1762275333327,0.2458878,102560.0,102550.0,0.08945965]
[1762275333595,3.65739419,102560.0,102550.0,0.06527965]
[1762275333824,3.29865991,102560.0,102550.0,0.04892965]
[1762275334028,3.63465991,102560.0,102550.0,0.04892965]
[1762275334258,0.05176381,102580.0,102560.0,0.03618228]
[1762275334492,3.0,102580.0,102570.0,0.19498878]
[1762275334708,3.5002458,102590.0,102580.0,0.03618228]
[1762275334935,3.5002458,102590.0,102560.0,0.12062727]
[1762275334936,0.19497452,102580.0,102560.0,0.03618228]
[1762275335178,3.04488,102570.0,102560.0,0.23119008]
[1762275335617,3.04488,102570.0,102560.0,0.23419008]
[1762275335831,0.04488,102570.0,102560.0,0.23419008]
[1762275336576,0.57986878,102570.0,102560.0,0.03918228]
[1762275336834,3.5350078,102560.0,102550.0,0.01274737]
[1762275337062,3.5514778,102560.0,102550.0,0.00114737]
[1762275337259,3.5350078,102560.0,102550.0,0.00114737]
[1762275337723,3.34,102560.0,102550.0,0.00114737]
[1762275337913,3.5798878,102560.0,102550.0,0.00214737]
[1762275338320,3.5818878,102560.0,102550.0,0.00214737]
[1762275338735,3.5818878,102560.0,102550.0,0.03832965]
[1762275340418,3.5798878,102560.0,102550.0,0.03832965]
[1762275341030,3.5350078,102560.0,102550.0,0.03832965]
[1762275341230,3.38488,102560.0,102550.0,0.03832965]
[1762275341434,3.5798878,102560.0,102550.0,0.03832965]
[1762275342060,3.38488,102560.0,102550.0,0.03832965]
[1762275342194,3.5350078,102560.0,102550.0,0.03832965]
[1762275342396,3.5798878,102560.0,102550.0,0.03832965]
[1762275342582,3.34,102560.0,102550.0,0.03718228]
[1762275342798,3.0,102560.0,102550.0,0.03718228]
[1762275343011,3.0,102570.0,102560.0,0.03618228]
[1762275343222,3.38488,102570.0,102560.0,0.03618228]
[1762275343430,3.57986878,102570.0,102560.0,0.03618228]
[1762275343829,0.5350078,102560.0,102550.0,0.001]
[1762275344062,3.5350078,102560.0,102550.0,0.03718228]
[1762275344267,3.34,102560.0,102550.0,0.03618228]
[1762275344460,3.5350078,102560.0,102550.0,0.03548228]
[1762275344669,3.34,102560.0,102550.0,0.03548228]
[1762275345094,3.5350078,102560.0,102550.0,0.03548228]
[1762275345278,3.34,102560.0,102550.0,0.03648228]
[1762275345472,3.34,102560.0,102550.0,0.03548228]
[1762275345682,3.5350078,102560.0,102550.0,0.03548228]
[1762275346323,3.1950078,102560.0,102550.0,0.04518252]
[1762275346750,3.1950078,102560.0,102550.0,0.04818252]
[1762275346968,3.2114778,102560.0,102550.0,0.05018252]
[1762275347174,3.27499361,102560.0,102550.0,0.01470024]
[1762275347343,3.04994386,102560.0,102550.0,0.01470024]
[1762275348104,3.02505386,102560.0,102550.0,0.01470024]
[1762275348308,3.39346386,102560.0,102550.0,0.01170024]
[1762275348558,3.40993386,102560.0,102550.0,0.04588252]
[1762275348754,3.39346386,102560.0,102550.0,0.04588252]
[1762275348970,3.05346386,102560.0,102550.0,0.04588252]
[1762275350110,3.05347337,102560.0,102550.0,0.04588252]
[1762275351138,3.05347337,102560.0,102550.0,0.06223252]
[1762275351139,2.85846557,102560.0,102550.0,0.06223252]
[1762275351341,2.81359756,102560.0,102550.0,0.07904252]
[1762275351543,0.06555376,102560.0,102550.0,0.27406933]
[1762275351723,0.06555376,102560.0,102550.0,0.31199141]
[1762275351929,3.04488,102570.0,102560.0,0.03618228]
[1762275352220,3.04488,102570.0,102560.0,0.05299228]
[1762275352221,0.08356395,102570.0,102560.0,0.05299228]
[1762275352426,0.06558864,102570.0,102560.0,0.06980228]
[1762275352622,3.76057742,102570.0,102560.0,0.05299228]
[1762275352825,3.27855504,102570.0,102560.0,0.05299228]
[1762275353043,0.1950078,102560.0,102550.0,0.04788252]
[1762275353291,3.02070864,102560.0,102550.0,0.06469252]
[1762275353469,3.02070864,102560.0,102550.0,0.07950252]
[1762275353666,3.02070864,102560.0,102550.0,0.08250252]
[1762275353903,3.21571644,102560.0,102550.0,0.06569252]
[1762275354138,3.21571644,102560.0,102550.0,0.07950252]
[1762275354359,3.21571644,102560.0,102550.0,0.08350252]
[1762275354584,3.21571644,102560.0,102550.0,0.07169252]
[1762275354793,3.02070864,102560.0,102550.0,0.28352933]
[1762275355001,3.02070864,102560.0,102550.0,0.08850252]
[1762275355205,0.02070864,102560.0,102550.0,0.28352933]
[1762275355416,0.02070864,102560.0,102550.0,0.08850252]
[1762275355621,3.26059768,102570.0,102560.0,0.03618228]
[1762275355836,3.27859211,102570.0,102560.0,0.03618228]
[1762275356008,0.1950078,102560.0,102550.0,0.07169252]
[1762275356272,0.21573511,102560.0,102550.0,0.07169252]
[1762275356479,0.23986882,102570.0,102560.0,0.03618228]
[1762275356711,3.27858839,102570.0,102560.0,0.05299228]
[1762275356883,3.27858839,102570.0,102560.0,0.05799228]
[1762275357116,3.27858835,102570.0,102560.0,0.07480228]
[1762275357234,3.27858835,102570.0,102560.0,0.07280228]
[1762275357455,3.27651815,102570.0,102560.0,0.07280228]
[1762275358101,3.27557619,102570.0,102560.0,0.07480228]
[1762275358307,3.27465348,102570.0,102560.0,0.07480228]
[1762275358518,3.07872494,102570.0,102560.0,0.07480228]
[1762275358719,3.25510334,102570.0,102560.0,0.07480228]
[1762275358932,3.25510334,102570.0,102560.0,0.04118228]
[1762275358933,3.68688564,102570.0,102560.0,0.04118228]
[1762275359141,3.68688564,102570.0,102560.0,0.005]
[1762275359142,3.68626456,102570.0,102560.0,0.005]
[1762275359344,3.65228626,102570.0,102560.0,0.005]
[1762275359557,3.62749165,102570.0,102560.0,0.04118228]
[1762275359758,3.62688237,102570.0,102560.0,0.03818228]
[1762275359952,3.07427849,102570.0,102560.0,0.05299228]
[1762275360201,3.23341136,102570.0,102560.0,0.05299228]
[1762275360390,3.27962992,102570.0,102560.0,0.05299228]
[1762275360596,3.33330796,102570.0,102560.0,0.03618228]
[1762275360800,3.67270972,102570.0,102560.0,0.03618228]
[1762275361014,3.6396715,102570.0,102560.0,0.03618228]
[1762275361252,3.66661319,102570.0,102560.0,0.03618228]
[1762275361455,3.66661319,102570.0,102560.0,0.05299228]
[1762275361456,3.61422582,102570.0,102560.0,0.05299228]
[1762275361627,3.22844552,102570.0,102560.0,0.05299228]
[1762275361863,3.61268762,102570.0,102560.0,0.05299228]
[1762275362047,3.41739308,102570.0,102560.0,0.26481008]
[1762275362265,3.03192146,102570.0,102560.0,0.1167556]
[1762275362468,3.27082758,102570.0,102560.0,0.05299228]
[1762275362687,3.27021534,102570.0,102560.0,0.03618228]
[1762275362893,3.32788193,102570.0,102560.0,0.03618228]
[1762275363045,3.61095044,102570.0,102560.0,0.05299228]
[1762275363261,3.61002132,102570.0,102560.0,0.05299228]
[1762275363468,3.60708098,102570.0,102560.0,0.07380228]
[1762275363798,3.60645394,102570.0,102560.0,0.06980228]
[1762275363991,3.60585244,102570.0,102560.0,0.07480228]
[1762275364131,3.41025924,102570.0,102560.0,0.07680228]
[1762275364333,3.4093264,102570.0,102560.0,0.07180228]
[1762275364622,0.08323499,102570.0,102560.0,0.09945512]
[1762275364822,0.08260811,102570.0,102560.0,0.07480228]
[1762275364995,0.08199592,102570.0,102560.0,0.07480228]
[1762275365192,0.03654669,102570.0,102560.0,0.26981008]
[1762275365397,0.04424208,102580.0,102570.0,0.26479106]
[1762275365637,0.06131175,102580.0,102570.0,0.10810674]
[1762275365823,0.25535015,102580.0,102570.0,0.10810674]
[1762275366079,0.25535015,102580.0,102570.0,0.06269252]
[1762275366080,3.25503034,102580.0,102570.0,0.06269252]
[1762275366226,3.59440718,102580.0,102570.0,0.04588252]
[1762275366430,3.64522469,102580.0,102570.0,0.04588252]
[1762275366673,3.64428091,102580.0,102570.0,0.05388252]
[1762275366815,3.10868257,102580.0,102570.0,0.08750252]
[1762275367027,0.10837128,102580.0,102570.0,0.30274198]
[1762275367255,0.05187847,102590.0,102580.0,0.06980228]
[1762275367475,0.63071516,102600.0,102590.0,0.05299228]
[1762275367677,0.63017292,102600.0,102590.0,0.07950252]
[1762275367883,0.09432378,102600.0,102590.0,0.07950252]
[1762275368082,0.28893418,102600.0,102590.0,0.07950252]
[1762275368294,0.28829505,102600.0,102590.0,0.06269252]
[1762275368505,3.62733578,102600.0,102590.0,0.04588252]
[1762275368707,3.59882346,102600.0,102590.0,0.04588252]
[1762275368912,3.64313915,102600.0,102590.0,0.04588252]
[1762275369120,3.62582515,102600.0,102590.0,0.04588252]
[1762275369370,3.66549556,102600.0,102590.0,0.04588252]
[1762275369585,0.19496977,102580.0,102570.0,0.003]
[1762275369816,3.78025471,102580.0,102570.0,0.003]
[1762275370226,3.78025471,102580.0,102540.0,0.05632645]
[1762275370227,0.19502681,102550.0,102540.0,0.05632645]
[1762275370439,3.23986681,102550.0,102540.0,0.05632645]
[1762275370645,3.57986681,102550.0,102540.0,0.05632645]
[1762275370855,3.57986681,102550.0,102540.0,0.03951645]
[1762275371090,3.63647681,102550.0,102540.0,0.03951645]
[1762275371295,3.63647681,102550.0,102540.0,0.04000278]
[1762275371940,3.34,102500.0,102490.0,0.00991]
[1762275372144,0.38484,102500.0,102490.0,0.02686593]
[1762275372349,0.38484,102500.0,102490.0,0.04367593]
[1762275372556,3.57996195,102500.0,102490.0,0.02686593]
[1762275372754,3.57996195,102500.0,102490.0,0.01005593]
[1762275373048,3.66588599,102500.0,102490.0,0.00014593]
[1762275373457,3.66588599,102500.0,102490.0,0.00301618]
[1762275373687,3.67688598,102500.0,102490.0,0.00301618]
[1762275373868,3.67588598,102500.0,102490.0,0.00301618]
[1762275374071,3.70988597,102500.0,102490.0,0.00301618]
[1762275374293,3.68588597,102500.0,102490.0,0.00301618]
[1762275375081,3.67588598,102500.0,102490.0,0.00301618]
[1762275375284,0.53519812,102460.0,102450.0,0.03983646]
[1762275375597,0.53519812,102460.0,102450.0,0.04032336]
[1762275375598,3.62141812,102460.0,102450.0,0.04032336]
[1762275375827,3.65414812,102460.0,102450.0,0.04032336]
[1762275376046,3.62141812,102460.0,102450.0,0.04032336]
[1762275376260,3.34,102460.0,102450.0,0.04032336]
[1762275376465,3.0,102470.0,102450.0,0.05713336]
[1762275376638,0.04484,102460.0,102450.0,0.31107615]
[1762275376915,0.28720863,102490.0,102460.0,0.03618228]
[1762275377113,3.04484,102480.0,102470.0,0.07971228]
[1762275377401,0.04484,102480.0,102470.0,0.07971228]
[1762275377598,0.19514155,102490.0,102480.0,0.03618228]
[1762275377599,3.19514098,102490.0,102480.0,0.03618228]
[1762275377807,3.04484,102490.0,102480.0,0.05299228]
[1762275378005,3.38484,102490.0,102480.0,0.03618228]
[1762275378204,3.57998098,102490.0,102480.0,0.03618228]
[1762275378565,3.38484,102490.0,102480.0,0.03618228]
[1762275378769,3.57998098,102490.0,102480.0,0.03618228]
[1762275379308,3.38484,102490.0,102480.0,0.03618228]
[1762275379533,3.38484,102490.0,102480.0,0.04546228]
[1762275379534,3.0674525,102490.0,102480.0,0.04546228]
[1762275379896,3.04684,102490.0,102480.0,0.03618228]
[1762275380097,3.26258764,102490.0,102480.0,0.03618228]
[1762275380499,3.04684,102490.0,102480.0,0.03618228]
[1762275380750,3.26257171,102490.0,102480.0,0.03618228]
[1762275381329,3.65918171,102490.0,102480.0,0.03618228]
[1762275381528,0.53518129,102470.0,102450.0,0.04960336]
[1762275381789,3.04484,102460.0,102450.0,0.04032336]
[1762275382001,0.04484,102460.0,102450.0,0.23554053]
[1762275382209,0.04484,102460.0,102450.0,0.24482053]
[1762275382621,0.34,102480.0,102470.0,0.03618228]
[1762275382825,3.5,102480.0,102470.0,0.03618228]
[1762275382961,3.04484,102480.0,102470.0,0.04546228]
[1762275383169,3.04484,102480.0,102470.0,0.05474228]
[1762275383390,3.04484,102480.0,102470.0,0.24992135]
[1762275383736,0.04484,102480.0,102470.0,0.24992135]
[1762275383944,0.04484,102480.0,102470.0,0.28754155]
[1762275384152,0.04484,102480.0,102470.0,0.09236248]
[1762275384356,0.04484,102480.0,102470.0,0.04946228]
[1762275384357,0.24000003,102480.0,102470.0,0.04946228]
[1762275384512,0.04484,102480.0,102470.0,0.04946228]
[1762275384718,0.04484,102480.0,102470.0,0.25392135]
[1762275384916,0.04484,102480.0,102470.0,0.05474228]
[1762275385118,3.58000003,102480.0,102470.0,0.03618228]
[1762275385320,0.53517907,102470.0,102450.0,0.04032336]
[1762275385489,3.24003812,102460.0,102450.0,0.04032336]
[1762275386061,3.04484,102460.0,102450.0,0.08578564]
[1762275386221,3.04484,102460.0,102450.0,0.09506564]
[1762275386695,0.04484,102460.0,102450.0,0.29028281]
[1762275387099,0.04484,102460.0,102450.0,0.33983972]
[1762275387269,0.04484,102460.0,102450.0,0.14462255]
[1762275387270,0.04684,102460.0,102450.0,0.14462255]
[1762275387599,0.04684,102460.0,102450.0,0.43186277]
[1762275387774,0.002,102460.0,102450.0,0.43186277]
[1762275389265,0.04484,102480.0,102460.0,0.23136277]
[1762275389462,0.04484,102480.0,102470.0,0.3326644]
[1762275389708,0.04484,102480.0,102470.0,0.3419444]
[1762275389884,3.0,102490.0,102480.0,0.23134169]
[1762275390088,0.57996203,102500.0,102480.0,0.05474228]
[1762275390290,3.0,102490.0,102480.0,0.05474228]
[1762275390469,3.0,102490.0,102480.0,0.23134231]
[1762275390678,0.57996203,102500.0,102480.0,0.23134231]
[1762275390679,0.04484,102500.0,102480.0,0.24062231]
[1762275390908,0.25383195,102500.0,102490.0,0.03618228]
[1762275391115,0.19519812,102460.0,102450.0,0.00032001]
[1762275391265,3.53525529,102430.0,102420.0,0.00052]
[1762275391457,3.59496529,102430.0,102420.0,0.00052]
[1762275391664,3.66129171,102430.0,102420.0,0.00052]
[1762275391900,3.61545171,102430.0,102420.0,0.00052]
[1762275392117,3.61545171,102430.0,102420.0,0.0010069]
[1762275392118,3.63334171,102430.0,102420.0,0.0010069]
[1762275392319,3.66129171,102430.0,102420.0,0.0010069]
[1762275392807,3.63334171,102430.0,102420.0,0.0010069]
[1762275393170,3.63634171,102430.0,102420.0,0.0010069]
[1762275393592,3.63634171,102430.0,102420.0,0.03718918]
[1762275394491,3.62243171,102430.0,102420.0,0.03718918]
[1762275394690,3.69473727,102430.0,102420.0,0.03718918]
[1762275395091,3.69473727,102430.0,102420.0,0.03891359]
[1762275395269,3.62243171,102430.0,102420.0,0.03891359]
[1762275396290,3.38137642,102430.0,102420.0,0.03891359]
[1762275396493,3.62243171,102430.0,102420.0,0.03891359]
[1762275397300,3.60188275,102430.0,102420.0,0.03891359]
[1762275397786,3.62240071,102430.0,102420.0,0.03891359]
[1762275398506,3.60188275,102430.0,102420.0,0.03891359]
[1762275398706,3.67446652,102430.0,102420.0,0.03891359]
[1762275399349,3.69503278,102430.0,102420.0,0.03891359]
[1762275399794,3.42719372,102430.0,102420.0,0.03891359]
[1762275400006,3.36082746,102430.0,102420.0,0.04993359]
[1762275400212,3.60180275,102430.0,102420.0,0.03891359]
[1762275400415,3.6045579,102430.0,102420.0,0.03891359]
[1762275400988,3.6517979,102430.0,102420.0,0.03891359]
[1762275401190,3.6696672,102430.0,102420.0,0.03891359]
[1762275401399,3.6224272,102430.0,102420.0,0.03891359]
[1762275402059,3.6696672,102430.0,102420.0,0.03891359]
[1762275402253,3.67860802,102430.0,102420.0,0.03891359]
[1762275402462,3.75048894,102430.0,102420.0,0.03891359]
[1762275403087,3.80230083,102430.0,102420.0,0.00273131]
[1762275403709,3.80230083,102430.0,102420.0,0.03891359]
[1762275404326,3.53527436,102420.0,102410.0,0.03638228]
[1762275404525,3.62990709,102420.0,102410.0,0.03652824]
[1762275405574,3.63290709,102420.0,102410.0,0.03652824]
[1762275406009,3.63290709,102420.0,102410.0,0.03752824]
[1762275406422,3.64628368,102420.0,102410.0,0.03752824]
[1762275406950,3.64628368,102420.0,102410.0,0.00114596]
[1762275407228,3.53529342,102410.0,102400.0,0.05028]
[1762275407435,3.72444043,102410.0,102400.0,0.05042598]
[1762275407639,3.72442987,102410.0,102400.0,0.05042598]
[1762275408068,3.72442987,102410.0,102400.0,0.02110048]
[1762275408263,0.5353125,102400.0,102390.0,0.03951645]
[1762275408462,3.59304385,102400.0,102390.0,0.03966255]
[1762275408729,3.61935385,102400.0,102390.0,0.03966255]
[1762275409080,3.61935385,102400.0,102390.0,0.07584483]
[1762275409285,3.64528966,102400.0,102390.0,0.07584483]
[1762275409490,3.69092966,102400.0,102390.0,0.07684483]
[1762275409700,3.73916966,102400.0,102390.0,0.07684483]
[1762275409902,3.74810137,102400.0,102390.0,0.07684483]
[1762275410332,3.79991326,102400.0,102390.0,0.07684483]
[1762275410461,3.79991326,102400.0,102390.0,0.07758433]
[1762275411122,3.79991326,102400.0,102390.0,0.04140205]
[1762275411547,3.77196326,102400.0,102390.0,0.07758433]
[1762275411859,3.74810137,102400.0,102390.0,0.07758433]
[1762275412855,3.65522137,102400.0,102390.0,0.07758433]
[1762275413052,3.70082137,102400.0,102390.0,0.07758433]
[1762275413254,3.74581137,102400.0,102390.0,0.07758433]
[1762275413516,3.79762326,102400.0,102390.0,0.07758433]
[1762275414655,3.53533157,102390.0,102380.0,0.025]
[1762275414860,3.62769463,102390.0,102380.0,0.025]
[1762275415110,3.53536973,102370.0,102360.0,0.00893]
[1762275415309,3.65052088,102370.0,102360.0,0.00034618]
[1762275415485,3.68665489,102370.0,102360.0,0.00034618]
[1762275415859,3.68665489,102370.0,102360.0,1e-08]
[1762275416413,3.68665489,102370.0,102340.0,0.0002]
[1762275416617,3.56765791,102350.0,102340.0,0.0002]
[1762275416798,3.63380052,102350.0,102340.0,0.0002]
[1762275416999,3.66099052,102350.0,102340.0,0.0002]
[1762275417401,3.70805297,102350.0,102340.0,0.0193]
[1762275417600,3.70805297,102350.0,102340.0,0.09351228]
[1762275417601,0.02058261,102350.0,102340.0,0.09351228]
[1762275417816,0.04552,102350.0,102340.0,0.09351228]
[1762275417994,0.00014564,102370.0,102350.0,0.23159019]
[1762275418196,3.0,102360.0,102350.0,0.25947019]
[1762275418492,3.0,102360.0,102350.0,0.03618228]
[1762275418688,3.0,102360.0,102350.0,0.05528228]
[1762275418922,3.0,102360.0,102350.0,0.08316228]
[1762275419817,0.001,102360.0,102350.0,0.08816228]
[1762275420193,0.001,102360.0,102350.0,0.28357019]
[1762275420396,0.003,102360.0,102350.0,0.3325048]
[1762275420597,0.19838882,102360.0,102350.0,0.08914881]
[1762275420796,0.21900322,102360.0,102350.0,0.08914881]
[1762275421000,0.0236144,102360.0,102350.0,0.08914881]
[1762275421397,0.0236144,102360.0,102350.0,0.28455672]
[1762275421398,0.001,102360.0,102350.0,0.28455672]
[1762275421719,0.19638882,102360.0,102350.0,0.09414881]
[1762275421900,0.0216144,102360.0,102350.0,0.09414881]
[1762275422301,0.21700322,102360.0,102350.0,0.09414881]
[1762275422723,0.0216144,102360.0,102350.0,0.28955672]
[1762275422925,0.0216144,102360.0,102350.0,0.09414881]
[1762275423100,0.19638882,102360.0,102350.0,0.09414881]
[1762275423336,3.57480322,102360.0,102350.0,0.04716881]
[1762275423537,3.57494672,102360.0,102350.0,0.06626881]
[1762275423886,3.55700322,102360.0,102350.0,0.06626881]
[1762275424302,3.55700322,102360.0,102350.0,0.04716881]
[1762275424529,3.57495483,102360.0,102350.0,0.04716881]
[1762275424759,3.57495483,102360.0,102350.0,0.09414881]
[1762275425008,0.55700322,102360.0,102350.0,0.09414881]
[1762275425253,0.0216144,102360.0,102350.0,0.38157977]
[1762275425463,0.0216144,102360.0,102350.0,0.41165321]
[1762275425932,0.001,102360.0,102350.0,0.41165321]
[1762275426245,0.19638882,102360.0,102350.0,0.18617186]
[1762275426465,0.21700322,102360.0,102350.0,0.09414881]
[1762275426905,3.55700322,102360.0,102350.0,0.06626881]
[1762275427126,3.57496733,102360.0,102350.0,0.01098653]
[1762275427368,3.57496733,102360.0,102350.0,0.03008653]
[1762275427577,3.3616144,102360.0,102350.0,0.09414881]
[1762275428019,0.55700322,102360.0,102350.0,0.09414881]
[1762275428462,0.0216144,102360.0,102350.0,0.38157977]
[1762275428686,0.00014564,102370.0,102360.0,0.2315711]
[1762275428903,0.00014564,102370.0,102360.0,0.1117665]
[1762275429132,0.00014564,102370.0,102360.0,0.34881489]
[1762275429350,0.00014564,102370.0,102360.0,0.15342607]
[1762275429569,0.19551537,102370.0,102360.0,0.15342607]
[1762275429789,0.23417807,102370.0,102360.0,0.11250632]
[1762275430080,3.48327807,102370.0,102360.0,0.08762632]
[1762275430240,3.82327807,102370.0,102360.0,0.11850632]
[1762275430459,3.82327807,102370.0,102360.0,0.0620221]
[1762275430674,3.97450883,102370.0,102360.0,0.00673982]
[1762275430861,3.72540883,102370.0,102360.0,0.00673982]
[1762275431035,3.68041883,102370.0,102360.0,0.00673982]
[1762275431419,3.68041883,102370.0,102360.0,0.00373982]
[1762275431635,3.68241883,102370.0,102360.0,0.00073982]
[1762275432050,3.68341883,102370.0,102360.0,0.00073982]
[1762275432274,3.64940694,102370.0,102360.0,0.00073982]
[1762275432480,3.71821897,102370.0,102360.0,0.00073982]
[1762275432856,3.6834203,102370.0,102360.0,0.01983982]
[1762275433066,3.6834203,102370.0,102360.0,0.00073982]
[1762275433369,0.6834203,102370.0,102360.0,0.0839021]
[1762275433558,0.48805057,102370.0,102360.0,0.0839021]
[1762275433806,0.14805057,102370.0,102360.0,0.0839021]
[1762275433963,0.10261057,102370.0,102360.0,0.3192845]
[1762275434183,0.03980834,102370.0,102360.0,0.3193245]
[1762275434643,0.03980834,102370.0,102360.0,0.12397568]
[1762275434848,0.02083977,102370.0,102360.0,0.12397568]
[1762275435071,0.02083977,102370.0,102360.0,0.28037092]
[1762275435264,3.2162095,102370.0,102360.0,0.0849821]
[1762275435484,3.62602524,102370.0,102360.0,0.0561021]
[1762275435671,0.02083977,102370.0,102360.0,0.0869821]
[1762275436077,0.2162095,102370.0,102360.0,0.0869821]
[1762275436225,0.2162095,102370.0,102360.0,0.0899821]
[1762275436431,0.09066675,102370.0,102360.0,0.0899821]
[1762275436631,0.03885339,102370.0,102360.0,0.0899821]
[1762275437260,0.28795339,102370.0,102360.0,0.0899821]
[1762275437932,0.26993977,102370.0,102360.0,0.28537092]
[1762275438148,0.2657142,102370.0,102360.0,0.37994698]
[1762275438522,0.2657142,102370.0,102360.0,0.18455816]
[1762275438647,0.2657142,102370.0,102360.0,0.28537092]
[1762275439062,0.46108393,102370.0,102360.0,0.0899821]
[1762275439317,0.87091309,102370.0,102360.0,0.0899821]
[1762275439946,0.67554336,102370.0,102360.0,0.0899821]
[1762275440158,0.62373,102370.0,102360.0,0.0899821]
[1762275440370,0.2671158,102370.0,102360.0,0.28537092]
[1762275440983,0.2491,102370.0,102360.0,0.28537092]
[1762275441675,0.2491,102370.0,102360.0,0.0899821]
[1762275442051,0.2491,102370.0,102360.0,0.28537092]
[1762275442286,0.2491,102370.0,102360.0,0.0899821]
[1762275442478,0.44446973,102370.0,102360.0,0.0899821]
[1762275442698,3.34,102370.0,102360.0,0.0621021]
[1762275442877,3.53536973,102370.0,102360.0,0.0912521]
[1762275443367,3.57981973,102370.0,102360.0,0.00381982]
[1762275444286,3.57981973,102370.0,102360.0,0.00081982]
[1762275444629,3.53536973,102370.0,102360.0,0.00081982]
[1762275444831,3.58056973,102370.0,102360.0,0.0838821]
[1762275445090,3.3852,102370.0,102360.0,0.0838821]
[1762275445258,0.3872,102370.0,102360.0,0.0838821]
[1762275445415,0.58056973,102370.0,102360.0,0.0838821]
[1762275445626,0.003,102370.0,102360.0,0.30719962]
[1762275445825,0.003,102370.0,102360.0,0.30723962]
[1762275446022,0.003,102370.0,102360.0,0.1118508]
[1762275446227,0.3852,102380.0,102370.0,0.03618228]
[1762275446427,0.3852,102380.0,102370.0,0.09182228]
[1762275446834,0.0452,102380.0,102370.0,0.09182228]
[1762275447197,0.24055065,102380.0,102370.0,0.09182228]
[1762275447408,0.0452,102380.0,102370.0,0.09182228]
[1762275447614,0.24055065,102380.0,102370.0,0.09182228]
[1762275448043,3.59391065,102380.0,102370.0,0.04494228]
[1762275448245,3.19536973,102370.0,102360.0,0.04618228]
[1762275448398,3.19536973,102370.0,102360.0,0.07433228]
[1762275448713,3.19536973,102370.0,102360.0,0.09606228]
[1762275448959,3.0,102370.0,102360.0,0.09606228]
[1762275449194,3.0,102370.0,102360.0,0.31659807]
[1762275449375,3.0,102370.0,102360.0,0.12120925]
[1762275449623,3.19636973,102370.0,102360.0,0.04518228]
[1762275450028,3.55351973,102370.0,102360.0,0.00024]
[1762275450244,3.60059927,102370.0,102360.0,0.00024]
[1762275450450,3.55614927,102370.0,102360.0,0.00224]
[1762275450631,3.55614927,102370.0,102360.0,0.01997]
[1762275450826,3.55614927,102370.0,102360.0,0.02097]
[1762275451026,3.55614927,102370.0,102360.0,0.01997]
[1762275451451,3.02077954,102370.0,102360.0,0.08348228]
[1762275451656,3.02077954,102370.0,102360.0,0.17350533]
[1762275451657,0.06689954,102370.0,102360.0,0.17350533]
[1762275452062,0.06789954,102370.0,102360.0,0.36963397]
[1762275452271,0.06789954,102370.0,102360.0,0.0822221]
[1762275452408,0.02177954,102370.0,102360.0,0.27761092]
[1762275452610,0.001,102370.0,102360.0,0.37218698]
[1762275452840,0.001,102370.0,102360.0,0.37418698]
[1762275453507,3.0,102380.0,102370.0,0.23155201]
[1762275453653,3.0207706,102380.0,102370.0,0.25888201]
[1762275453851,0.21612125,102380.0,102370.0,0.09406228]
[1762275454058,3.58656892,102380.0,102370.0,0.06673228]
[1762275454273,3.61233464,102380.0,102370.0,0.03618228]
[1762275454496,3.17389167,102370.0,102360.0,0.03642228]
[1762275454712,3.55993167,102370.0,102360.0,0.03642228]
[1762275454923,3.58140973,102370.0,102360.0,0.08356228]
[1762275455135,3.38604,102370.0,102360.0,0.08356228]
[1762275455345,3.38504,102370.0,102360.0,0.08356228]
[1762275455769,0.04504,102370.0,102360.0,0.30970844]
[1762275456400,0.34,102380.0,102370.0,0.001]
[1762275456635,0.34,102380.0,102370.0,0.09506228]
[1762275456867,0.53535065,102380.0,102370.0,0.09406228]
[1762275457299,0.34,102380.0,102370.0,0.09406228]
[1762275457507,3.58037225,102390.0,102380.0,0.03618228]
[1762275457718,3.5983787,102390.0,102380.0,0.08332228]
[1762275457944,0.19535065,102380.0,102370.0,0.01174]
[1762275458182,3.55336012,102380.0,102370.0,0.04892228]
[1762275458384,3.56791012,102380.0,102370.0,0.04892228]
[1762275458691,3.58683012,102380.0,102370.0,0.04792228]
[1762275458893,3.58683012,102380.0,102370.0,0.04841545]
[1762275459301,3.56791012,102380.0,102370.0,0.04841545]
[1762275459621,3.56791012,102380.0,102370.0,0.04741545]
[1762275459842,3.61513012,102380.0,102370.0,0.03667545]
[1762275460045,3.61513012,102380.0,102370.0,0.00049317]
[1762275460417,3.61512894,102380.0,102370.0,0.00049317]
[1762275460654,3.61612935,102380.0,102370.0,0.00049317]
[1762275464173,3.56990935,102380.0,102370.0,0.01064317]
[1762275464390,3.61490935,102380.0,102370.0,0.01064317]
[1762275465001,3.66112935,102380.0,102370.0,0.00049317]
[1762275466275,3.66111704,102380.0,102370.0,0.00049317]
[1762275466470,3.68184996,102380.0,102370.0,0.00049317]
[1762275468094,3.63562996,102380.0,102370.0,0.03667545]
[1762275468827,3.65454996,102380.0,102370.0,0.00049317]
[1762275468994,3.68184996,102380.0,102370.0,0.00049317]
[1762275469511,3.68184996,102380.0,102370.0,1e-08]
[1762275469735,3.68184996,102380.0,102360.0,1e-08]
[1762275469736,0.53536973,102370.0,102360.0,1e-08]
[1762275469967,3.72689209,102370.0,102360.0,1e-08]
[1762275470377,3.72689209,102370.0,102360.0,0.00024664]
[1762275471018,3.80005317,102370.0,102360.0,0.00024664]
[1762275471989,3.80605317,102370.0,102360.0,0.00024664]
[1762275472602,3.81005317,102370.0,102360.0,0.00024664]
[1762275473200,3.86005317,102370.0,102360.0,0.00024664]
[1762275473399,3.53540791,102350.0,102340.0,0.03638228]
[1762275473725,3.65807083,102350.0,102340.0,0.00034564]
[1762275474511,3.72605791,102350.0,102340.0,0.00034564]
[1762275474704,0.535427,102340.0,102330.0,4e-05]
[1762275474930,3.59712515,102340.0,102330.0,4e-05]
[1762275476060,3.58555538,102340.0,102330.0,4e-05]
[1762275476269,3.58555538,102340.0,102330.0,0.01019]
[1762275476270,3.5584,102340.0,102330.0,0.01019]
[1762275476468,3.54619842,102340.0,102330.0,0.01019]
[1762275476668,3.55873868,102340.0,102330.0,0.01319]
[1762275476871,3.55873868,102340.0,102330.0,0.01619]
[1762275477080,3.5564978,102340.0,102330.0,0.01619]
[1762275477286,3.54986774,102340.0,102330.0,0.01619]
[1762275477843,3.57598774,102340.0,102330.0,0.00604]
[1762275478708,3.53548526,102340.0,102330.0,0.00604]
[1762275478926,3.17826526,102340.0,102330.0,0.09658228]
[1762275479125,3.21804412,102340.0,102330.0,0.06796228]
[1762275479370,3.55804412,102340.0,102330.0,0.06796228]
[1762275479575,3.55804412,102340.0,102330.0,0.04837228]